[Event "*** Titled Tuesday Blitz"]
[Site "Chess.com"]
[Date "2019.08.06"]
[Round "6"]
[White "SanchezKelvin"]
[Black "kesarev"]
[Result "0-1"]
[WhiteElo "2440"]
[BlackElo "2488"]
[TimeControl "180+2"]
[EndTime "14:24:10 PDT"]
[Termination "kesarev won on time"]

1. d4 {[%clk 0:03:01.9]} 1... g6 {[%clk 0:02:42.6]} 2. c4 {[%clk 0:03:02.2]}
2... Bg7 {[%clk 0:02:43.4]} 3. Nc3 {[%clk 0:02:58.4]} 3... Nf6 {[%clk 0:02:44]}
4. e4 {[%clk 0:02:59.2]} 4... O-O {[%clk 0:02:45.9]} 5. Nf3 {[%clk 0:02:59.7]}
5... d6 {[%clk 0:02:46.9]} 6. Be2 {[%clk 0:03:00.6]} 6... e5 {[%clk 0:02:48.4]}
7. O-O {[%clk 0:03:01.4]} 7... Nc6 {[%clk 0:02:49.2]} 8. d5 {[%clk 0:03:02.7]}
8... Ne7 {[%clk 0:02:50.4]} 9. Ne1 {[%clk 0:03:04.6]} 9... Nd7 {[%clk
0:02:50.9]} 10. Nd3 {[%clk 0:03:05.7]} 10... f5 {[%clk 0:02:51.4]} 11. Bd2
{[%clk 0:03:07]} 11... Nf6 {[%clk 0:02:35.4]} 12. f3 {[%clk 0:03:06]} 12... f4
{[%clk 0:02:19.1]} 13. Rc1 {[%clk 0:03:01.8]} 13... g5 {[%clk 0:02:19.2]} 14. c5
{[%clk 0:02:59.9]} 14... Ng6 {[%clk 0:02:17.8]} 15. cxd6 {[%clk 0:03:01]} 15...
cxd6 {[%clk 0:02:18.9]} 16. Nf2 {[%clk 0:02:55.8]} 16... Rf7 {[%clk 0:02:15]}
17. a4 {[%clk 0:02:48.1]} 17... h5 {[%clk 0:02:08.2]} 18. h3 {[%clk 0:02:47.7]}
18... Bf8 {[%clk 0:02:03.5]} 19. Qb3 {[%clk 0:02:46.5]} 19... Nh4 {[%clk
0:02:02.2]} 20. Be1 {[%clk 0:02:44.7]} 20... Rg7 {[%clk 0:02:00.3]} 21. Nb5
{[%clk 0:02:37.6]} 21... g4 {[%clk 0:01:51.7]} 22. hxg4 {[%clk 0:02:36.7]} 22...
hxg4 {[%clk 0:01:52.4]} 23. fxg4 {[%clk 0:02:37.8]} 23... Nxg4 {[%clk
0:01:50.3]} 24. Nxg4 {[%clk 0:02:30.6]} 24... Bxg4 {[%clk 0:01:49.7]} 25. Bxg4
{[%clk 0:02:31.2]} 25... Rxg4 {[%clk 0:01:50.6]} 26. Qh3 {[%clk 0:02:29.3]}
26... Qg5 {[%clk 0:01:32.2]} 27. Bxh4 {[%clk 0:02:28.2]} 27... Qxh4 {[%clk
0:01:22.9]} 28. Qxh4 {[%clk 0:02:28.7]} 28... Rxh4 {[%clk 0:01:24.2]} 29. Rc7
{[%clk 0:02:28]} 29... a6 {[%clk 0:01:21.2]} 30. Nc3 {[%clk 0:02:26.8]} 30... b5
{[%clk 0:01:22.1]} 31. a5 {[%clk 0:02:18.2]} 31... Rg4 {[%clk 0:01:15]} 32. Rf3
{[%clk 0:02:01.2]} 32... Bg7 {[%clk 0:00:48.3]} 33. Nd1 {[%clk 0:01:46.5]} 33...
b4 {[%clk 0:00:37.9]} 34. Nf2 {[%clk 0:01:44.2]} 34... Rg6 {[%clk 0:00:37.6]}
35. Rb3 {[%clk 0:01:36.5]} 35... Rb8 {[%clk 0:00:36.9]} 36. Rc6 {[%clk 0:01:35]}
36... Rb5 {[%clk 0:00:29.6]} 37. Rxa6 {[%clk 0:01:35.2]} 37... Rc5 {[%clk
0:00:30.9]} 38. Ra8+ {[%clk 0:01:34.7]} 38... Kf7 {[%clk 0:00:31]} 39. a6 {[%clk
0:01:29.3]} 39... Rc1+ {[%clk 0:00:31.7]} 40. Kh2 {[%clk 0:01:29.4]} 40... Rc2
{[%clk 0:00:32.6]} 41. a7 {[%clk 0:01:23]} 41... Rxf2 {[%clk 0:00:32.4]} 42.
Rf8+ {[%clk 0:01:12.9]} 42... Bxf8 {[%clk 0:00:32.7]} 43. a8=Q {[%clk
0:01:12.1]} 43... Rfxg2+ {[%clk 0:00:21.1]} 44. Kh3 {[%clk 0:01:07.6]} 44...
R2g5 {[%clk 0:00:18.2]} 45. Qa7+ {[%clk 0:00:50.3]} 45... Be7 {[%clk 0:00:19]}
46. Kh2 {[%clk 0:00:49.8]} 46... Rg2+ {[%clk 0:00:19.7]} 47. Kh1 {[%clk
0:00:49.8]} 47... Rc2 {[%clk 0:00:13.6]} 48. Rxb4 {[%clk 0:00:34.8]} 48... Rc1+
{[%clk 0:00:13.4]} 49. Kh2 {[%clk 0:00:35.2]} 49... Rc2+ {[%clk 0:00:13.8]} 50.
Kh1 {[%clk 0:00:19]} 50... f3 {[%clk 0:00:12.4]} 51. Rb3 {[%clk 0:00:17.3]}
51... Rh6+ {[%clk 0:00:12]} 52. Kg1 {[%clk 0:00:15.7]} 52... Rg2+ {[%clk
0:00:13.9]} 0-1

[Event "*** Titled Tuesday Blitz"]
[Site "Chess.com"]
[Date "2019.08.06"]
[Round "6"]
[White "OlympusMons95"]
[Black "Zubrrr"]
[Result "1-0"]
[WhiteElo "2668"]
[BlackElo "2712"]
[TimeControl "180+2"]
[EndTime "14:24:14 PDT"]
[Termination "OlympusMons95 won by resignation"]

1. Nf3 {[%clk 0:01:53.8]} 1... d6 {[%clk 0:02:57.7]} 2. d4 {[%clk 0:01:54.3]}
2... Nc6 {[%clk 0:02:58]} 3. e4 {[%clk 0:01:55]} 3... g6 {[%clk 0:02:57.1]} 4.
h3 {[%clk 0:01:54.5]} 4... Bg7 {[%clk 0:02:58.1]} 5. Be3 {[%clk 0:01:55.5]} 5...
e5 {[%clk 0:02:53.1]} 6. dxe5 {[%clk 0:01:51.9]} 6... Nxe5 {[%clk 0:02:51.2]} 7.
Nc3 {[%clk 0:01:49.8]} 7... Nxf3+ {[%clk 0:02:43.4]} 8. Qxf3 {[%clk 0:01:51.7]}
8... Be6 {[%clk 0:02:44.4]} 9. Bd3 {[%clk 0:01:45.9]} 9... c6 {[%clk 0:02:35.8]}
10. O-O {[%clk 0:01:46.4]} 10... Qa5 {[%clk 0:02:33.5]} 11. Bd2 {[%clk
0:01:43.8]} 11... Qb6 {[%clk 0:02:23.9]} 12. Rab1 {[%clk 0:01:41.9]} 12... Ne7
{[%clk 0:02:22]} 13. Ne2 {[%clk 0:01:41.5]} 13... Bxa2 {[%clk 0:02:20.7]} 14.
Ra1 {[%clk 0:01:39.7]} 14... Be6 {[%clk 0:01:56.8]} 15. Qg3 {[%clk 0:01:32.1]}
15... Qc7 {[%clk 0:01:22.8]} 16. c3 {[%clk 0:01:02.9]} 16... O-O {[%clk
0:01:22.1]} 17. Nd4 {[%clk 0:01:00.4]} 17... Bd7 {[%clk 0:01:19]} 18. Bg5 {[%clk
0:01:00.1]} 18... Rfe8 {[%clk 0:00:53.3]} 19. Qh4 {[%clk 0:00:57.3]} 19... Be6
{[%clk 0:00:33.2]} 20. Kh1 {[%clk 0:00:48.3]} 20... a6 {[%clk 0:00:28.4]} 21. f4
{[%clk 0:00:49]} 21... c5 {[%clk 0:00:29.5]} 22. f5 {[%clk 0:00:31.9]} 22...
cxd4 {[%clk 0:00:29.8]} 23. f6 {[%clk 0:00:33.2]} 23... Bf8 {[%clk 0:00:23.2]}
24. Bh6 {[%clk 0:00:25.2]} 24... Kh8 {[%clk 0:00:19.1]} 25. Bxf8 {[%clk
0:00:23.5]} 25... Rxf8 {[%clk 0:00:21]} 26. fxe7 {[%clk 0:00:18.8]} 26... Rfe8
{[%clk 0:00:22.1]} 27. cxd4 {[%clk 0:00:19.4]} 27... Qxe7 {[%clk 0:00:23]} 28.
Qf4 {[%clk 0:00:20.7]} 28... Bd7 {[%clk 0:00:18.5]} 29. Qxf7 {[%clk 0:00:20.1]}
29... Be6 {[%clk 0:00:19.3]} 30. Qf4 {[%clk 0:00:20.9]} 30... Rf8 {[%clk
0:00:19.7]} 31. Qg3 {[%clk 0:00:21.8]} 31... Rxf1+ {[%clk 0:00:20]} 32. Rxf1
{[%clk 0:00:23.7]} 32... Rf8 {[%clk 0:00:21.1]} 33. Rxf8+ {[%clk 0:00:24.8]}
33... Qxf8 {[%clk 0:00:23]} 34. d5 {[%clk 0:00:26.7]} 34... Bd7 {[%clk 0:00:24]}
35. e5 {[%clk 0:00:27.2]} 35... dxe5 {[%clk 0:00:22.9]} 36. Qxe5+ {[%clk
0:00:29.1]} 36... Kg8 {[%clk 0:00:19.2]} 37. Bc4 {[%clk 0:00:27.2]} 37... Qc5
{[%clk 0:00:20.1]} 38. Qf4 {[%clk 0:00:22.6]} 38... b5 {[%clk 0:00:19]} 39. Bb3
{[%clk 0:00:24.1]} 39... Kg7 {[%clk 0:00:14.8]} 40. d6 {[%clk 0:00:24]} 40...
Qf5 {[%clk 0:00:12.8]} 41. Qd4+ {[%clk 0:00:24]} 41... Kh6 {[%clk 0:00:13.6]}
42. Qe3+ {[%clk 0:00:24.4]} 42... Kg7 {[%clk 0:00:13.9]} 43. Qe7+ {[%clk
0:00:25.1]} 43... Kh6 {[%clk 0:00:15.3]} 44. Qe3+ {[%clk 0:00:24.7]} 44... Kg7
{[%clk 0:00:13]} 45. Qd4+ {[%clk 0:00:25.7]} 45... Kh6 {[%clk 0:00:12.8]} 46.
Kh2 {[%clk 0:00:27.1]} 46... g5 {[%clk 0:00:12.3]} 47. Kg1 {[%clk 0:00:23.6]}
47... a5 {[%clk 0:00:12.9]} 48. Bd1 {[%clk 0:00:22.1]} 48... Qf4 {[%clk
0:00:10.8]} 49. Qxf4 {[%clk 0:00:22.3]} 49... gxf4 {[%clk 0:00:11.6]} 50. Bg4
{[%clk 0:00:24.2]} 50... Bc6 {[%clk 0:00:10.6]} 51. d7 {[%clk 0:00:25.4]} 51...
Bxd7 {[%clk 0:00:11.9]} 52. Bxd7 {[%clk 0:00:27.3]} 52... b4 {[%clk 0:00:13.8]}
53. b3 {[%clk 0:00:28]} 53... Kg5 {[%clk 0:00:15.1]} 54. Kf2 {[%clk 0:00:29.3]}
54... Kf6 {[%clk 0:00:16.6]} 55. Kf3 {[%clk 0:00:30.7]} 55... Ke5 {[%clk
0:00:18.5]} 56. Bc6 {[%clk 0:00:30.9]} 56... h5 {[%clk 0:00:19.3]} 57. h4 {[%clk
0:00:31.6]} 57... Kf5 {[%clk 0:00:20.3]} 58. Be4+ {[%clk 0:00:30.3]} 58... Ke5
{[%clk 0:00:21.4]} 59. Bc2 {[%clk 0:00:31.5]} 59... Kd4 {[%clk 0:00:21.6]} 60.
Kxf4 {[%clk 0:00:32.3]} 60... Kc3 {[%clk 0:00:23]} 61. Bd1 {[%clk 0:00:33.8]}
1-0

[Event "*** Titled Tuesday Blitz"]
[Site "Chess.com"]
[Date "2019.08.06"]
[Round "6"]
[White "Supernotar"]
[Black "dmosesov"]
[Result "1-0"]
[WhiteElo "2631"]
[BlackElo "2548"]
[TimeControl "180+2"]
[EndTime "14:24:17 PDT"]
[Termination "Supernotar won by resignation"]

1. d4 {[%clk 0:03:01.9]} 1... Nf6 {[%clk 0:03:00.6]} 2. c4 {[%clk 0:03:03]} 2...
b6 {[%clk 0:03:01.7]} 3. Nf3 {[%clk 0:03:04.2]} 3... Bb7 {[%clk 0:03:02.9]} 4.
Nbd2 {[%clk 0:03:04.4]} 4... g6 {[%clk 0:03:00.8]} 5. g3 {[%clk 0:03:05.5]} 5...
Bg7 {[%clk 0:03:01.8]} 6. Bg2 {[%clk 0:03:06.8]} 6... O-O {[%clk 0:03:03.5]} 7.
O-O {[%clk 0:03:07.8]} 7... d6 {[%clk 0:03:04.8]} 8. Qc2 {[%clk 0:03:07.5]} 8...
Nbd7 {[%clk 0:03:05.6]} 9. e4 {[%clk 0:03:07.8]} 9... e5 {[%clk 0:03:06.9]} 10.
Rb1 {[%clk 0:03:03]} 10... a5 {[%clk 0:03:07.5]} 11. b3 {[%clk 0:03:03.4]} 11...
exd4 {[%clk 0:02:53.2]} 12. Nxd4 {[%clk 0:03:03.3]} 12... Nc5 {[%clk 0:02:54.4]}
13. Bb2 {[%clk 0:03:01.4]} 13... Re8 {[%clk 0:02:55.4]} 14. Rfe1 {[%clk
0:03:01.1]} 14... Ng4 {[%clk 0:02:48.5]} 15. Rbd1 {[%clk 0:02:53.8]} 15... Ne5
{[%clk 0:02:37.4]} 16. Nb1 {[%clk 0:02:53.6]} 16... Qe7 {[%clk 0:02:03.8]} 17.
Nc3 {[%clk 0:02:53.2]} 17... Ne6 {[%clk 0:01:57.3]} 18. Nde2 {[%clk 0:02:46.8]}
18... Qf8 {[%clk 0:01:46.7]} 19. h3 {[%clk 0:02:43.8]} 19... f5 {[%clk
0:01:34.3]} 20. f4 {[%clk 0:02:34]} 20... Nc6 {[%clk 0:01:34.5]} 21. exf5 {[%clk
0:02:29.8]} 21... gxf5 {[%clk 0:01:32.7]} 22. Nd5 {[%clk 0:02:28]} 22... Nb4
{[%clk 0:01:27]} 23. Qb1 {[%clk 0:01:51.4]} 23... Bxb2 {[%clk 0:01:12.1]} 24.
Qxb2 {[%clk 0:01:49]} 24... Bxd5 {[%clk 0:01:13.2]} 25. Bxd5 {[%clk 0:01:28.4]}
25... Nxd5 {[%clk 0:01:13]} 26. Rxd5 {[%clk 0:01:16.5]} 26... a4 {[%clk
0:01:04.2]} 27. Qc2 {[%clk 0:01:07.1]} 27... axb3 {[%clk 0:01:04]} 28. axb3
{[%clk 0:01:07.3]} 28... Ra5 {[%clk 0:00:55.1]} 29. Red1 {[%clk 0:01:03.2]}
29... Rxd5 {[%clk 0:00:40.6]} 30. cxd5 {[%clk 0:01:02.8]} 30... Nc5 {[%clk
0:00:37.9]} 31. b4 {[%clk 0:00:58.7]} 31... Qe7 {[%clk 0:00:32.7]} 32. Kf1
{[%clk 0:00:41.2]} 32... Ne4 {[%clk 0:00:24.9]} 33. Rd3 {[%clk 0:00:39.8]} 33...
Qg7 {[%clk 0:00:24]} 34. Kg2 {[%clk 0:00:38.4]} 34... h5 {[%clk 0:00:24.4]} 35.
Kh2 {[%clk 0:00:33.3]} 35... Kh7 {[%clk 0:00:18.1]} 36. Nd4 {[%clk 0:00:33.5]}
36... Qg6 {[%clk 0:00:12.7]} 37. Qxc7+ {[%clk 0:00:34]} 37... Kh6 {[%clk
0:00:13.1]} 38. Ne6 {[%clk 0:00:28.5]} 38... Ra8 {[%clk 0:00:13.9]} 39. Qc2
{[%clk 0:00:23.6]} 39... Ra1 {[%clk 0:00:15]} 40. Qb2 {[%clk 0:00:21]} 40... Re1
{[%clk 0:00:14.8]} 41. Qh8+ {[%clk 0:00:21.6]} 41... Qh7 {[%clk 0:00:15.3]} 42.
Qf8+ {[%clk 0:00:22.8]} 42... Kg6 {[%clk 0:00:15.5]} 43. Ra3 {[%clk 0:00:15.7]}
43... Qf7 {[%clk 0:00:12.7]} 44. Qh8 {[%clk 0:00:13.3]} 44... Re2+ {[%clk
0:00:12.4]} 45. Kg1 {[%clk 0:00:14.1]} 45... Re1+ {[%clk 0:00:10.8]} 46. Kg2
{[%clk 0:00:14.9]} 46... Re2+ {[%clk 0:00:12.7]} 47. Kf1 {[%clk 0:00:14.8]}
47... Rf2+ {[%clk 0:00:11.8]} 48. Kg1 {[%clk 0:00:15.6]} 48... Rc2 {[%clk
0:00:09.8]} 49. Ra8 {[%clk 0:00:16.2]} 49... Rc1+ {[%clk 0:00:09.6]} 50. Kg2
{[%clk 0:00:17.6]} 50... Rc2+ {[%clk 0:00:11.5]} 51. Kf1 {[%clk 0:00:18.7]}
51... Nxg3+ {[%clk 0:00:11.8]} 52. Ke1 {[%clk 0:00:15.7]} 52... Re2+ {[%clk
0:00:12.6]} 53. Kd1 {[%clk 0:00:17]} 53... Rxe6 {[%clk 0:00:11.9]} 54. Rg8+
{[%clk 0:00:17.3]} 1-0

[Event "*** Titled Tuesday Blitz"]
[Site "Chess.com"]
[Date "2019.08.06"]
[Round "6"]
[White "Fandorine"]
[Black "Atakishiyev04"]
[Result "0-1"]
[WhiteElo "2865"]
[BlackElo "2641"]
[TimeControl "180+2"]
[EndTime "14:24:34 PDT"]
[Termination "Atakishiyev04 won by resignation"]

1. e4 {[%clk 0:03:01.9]} 1... e6 {[%clk 0:02:58.4]} 2. d4 {[%clk 0:03:02.4]}
2... d5 {[%clk 0:02:55.3]} 3. Nc3 {[%clk 0:03:03.8]} 3... h6 {[%clk 0:02:55.7]}
4. exd5 {[%clk 0:03:00.6]} 4... exd5 {[%clk 0:02:56]} 5. Bd3 {[%clk 0:02:59.1]}
5... Nf6 {[%clk 0:02:56]} 6. Nf3 {[%clk 0:03:00.4]} 6... Bd6 {[%clk 0:02:56]} 7.
O-O {[%clk 0:03:01.1]} 7... O-O {[%clk 0:02:55]} 8. h3 {[%clk 0:02:57.6]} 8...
a6 {[%clk 0:02:52.9]} 9. Re1 {[%clk 0:02:58.1]} 9... Re8 {[%clk 0:02:51]} 10.
Rxe8+ {[%clk 0:02:58.2]} 10... Qxe8 {[%clk 0:02:51.5]} 11. Be3 {[%clk
0:02:59.7]} 11... c6 {[%clk 0:02:47.2]} 12. Qd2 {[%clk 0:02:55.8]} 12... Ne4
{[%clk 0:02:43.3]} 13. Bxe4 {[%clk 0:02:56.1]} 13... dxe4 {[%clk 0:02:42.2]} 14.
Ne5 {[%clk 0:02:57.6]} 14... Bb4 {[%clk 0:02:39.1]} 15. a3 {[%clk 0:02:55.7]}
15... Bxc3 {[%clk 0:02:37.3]} 16. Qxc3 {[%clk 0:02:57.2]} 16... Be6 {[%clk
0:02:37.7]} 17. Qb4 {[%clk 0:02:54.1]} 17... b5 {[%clk 0:02:28.7]} 18. Qd6
{[%clk 0:02:46.1]} 18... f6 {[%clk 0:02:28]} 19. Ng6 {[%clk 0:02:46.4]} 19...
Bxh3 {[%clk 0:02:15]} 20. Nf4 {[%clk 0:02:46.7]} 20... Qd7 {[%clk 0:02:13.6]}
21. Qc5 {[%clk 0:02:44.2]} 21... Bg4 {[%clk 0:02:13.1]} 22. d5 {[%clk
0:02:37.6]} 22... g5 {[%clk 0:02:02.8]} 23. dxc6 {[%clk 0:02:25]} 23... Qxc6
{[%clk 0:02:04.7]} 24. Nd5 {[%clk 0:02:26.2]} 24... Qxc5 {[%clk 0:02:03.9]} 25.
Bxc5 {[%clk 0:02:26.6]} 25... Nd7 {[%clk 0:02:05.2]} 26. Bd4 {[%clk 0:02:18]}
26... Kf7 {[%clk 0:02:03.7]} 27. a4 {[%clk 0:02:19.3]} 27... Be6 {[%clk
0:01:55.8]} 28. Nc7 {[%clk 0:02:15.1]} 28... Rc8 {[%clk 0:01:53.4]} 29. Nxa6
{[%clk 0:02:16.5]} 29... Rc4 {[%clk 0:01:47.4]} 30. a5 {[%clk 0:01:48.6]} 30...
Rxd4 {[%clk 0:01:46]} 31. Nc7 {[%clk 0:01:46.5]} 31... Rc4 {[%clk 0:01:43.4]}
32. Nxb5 {[%clk 0:01:46.4]} 32... Rxc2 {[%clk 0:01:44.9]} 33. a6 {[%clk
0:01:03]} 33... Bd5 {[%clk 0:01:38.3]} 34. b4 {[%clk 0:00:53.9]} 34... e3 {[%clk
0:01:36.4]} 35. f3 {[%clk 0:00:49.5]} 35... g4 {[%clk 0:01:33.1]} 36. Nd4 {[%clk
0:00:45.5]} 36... Rd2 {[%clk 0:01:29]} 37. Nf5 {[%clk 0:00:44.2]} 37... e2
{[%clk 0:01:11]} 38. Re1 {[%clk 0:00:43.7]} 38... gxf3 {[%clk 0:01:11.6]} 39.
gxf3 {[%clk 0:00:42.7]} 39... Ne5 {[%clk 0:01:12.3]} 40. Kf2 {[%clk 0:00:40.3]}
40... Nd3+ {[%clk 0:01:12.8]} 41. Ke3 {[%clk 0:00:41.8]} 41... Nxe1 {[%clk
0:00:57]} 42. Kxd2 {[%clk 0:00:42.9]} 42... Nd3 {[%clk 0:00:58.4]} 43. Kxe2
{[%clk 0:00:41.3]} 43... Nxb4 {[%clk 0:00:59.3]} 44. a7 {[%clk 0:00:39.5]} 44...
Ke6 {[%clk 0:00:57.4]} 45. Nxh6 {[%clk 0:00:31.5]} 45... Bb7 {[%clk 0:00:56.5]}
46. Ke3 {[%clk 0:00:29.7]} 46... Nc6 {[%clk 0:00:54.6]} 47. f4 {[%clk 0:00:29]}
47... f5 {[%clk 0:00:53.5]} 48. Nxf5 {[%clk 0:00:29.7]} 48... Kxf5 {[%clk
0:00:54.6]} 49. Kd3 {[%clk 0:00:31.6]} 49... Nxa7 {[%clk 0:00:53.6]} 50. Kc4
{[%clk 0:00:33.5]} 50... Kxf4 {[%clk 0:00:52.9]} 51. Kd4 {[%clk 0:00:35.4]}
51... Nc8 {[%clk 0:00:52.2]} 52. Kd3 {[%clk 0:00:37.3]} 52... Be4+ {[%clk
0:00:53.1]} 53. Kd4 {[%clk 0:00:39.2]} 53... Ne7 {[%clk 0:00:54.3]} 54. Kc5
{[%clk 0:00:37.7]} 54... Ke5 {[%clk 0:00:55.5]} 55. Kc4 {[%clk 0:00:39.3]} 55...
Bd5+ {[%clk 0:00:53.1]} 56. Kc5 {[%clk 0:00:40.3]} 56... Nc6 {[%clk 0:00:53.1]}
57. Kb5 {[%clk 0:00:39.4]} 57... Kd6 {[%clk 0:00:53.6]} 58. Kb6 {[%clk
0:00:36.8]} 58... Bc4 {[%clk 0:00:52]} 59. Kb7 {[%clk 0:00:38.2]} 59... Nd4
{[%clk 0:00:35.1]} 60. Kb6 {[%clk 0:00:38.3]} 60... Nb3 {[%clk 0:00:33.7]} 61.
Kb7 {[%clk 0:00:39.7]} 61... Bb5 {[%clk 0:00:28.2]} 62. Kb6 {[%clk 0:00:34.9]}
62... Bc6 {[%clk 0:00:29.4]} 63. Ka6 {[%clk 0:00:32.8]} 63... Kc7 {[%clk
0:00:29.3]} 64. Ka7 {[%clk 0:00:33.4]} 64... Bb5 {[%clk 0:00:30]} 65. Ka8 {[%clk
0:00:33.9]} 65... Nd2 {[%clk 0:00:31.2]} 66. Ka7 {[%clk 0:00:35]} 66... Nc4
{[%clk 0:00:31.8]} 67. Ka8 {[%clk 0:00:36.4]} 67... Nb6+ {[%clk 0:00:33.2]} 68.
Ka7 {[%clk 0:00:37.7]} 68... Nc8+ {[%clk 0:00:34.6]} 0-1

[Event "*** Titled Tuesday Blitz"]
[Site "Chess.com"]
[Date "2019.08.06"]
[Round "6"]
[White "vpsetter"]
[Black "MarianPetrov"]
[Result "0-1"]
[WhiteElo "2635"]
[BlackElo "2563"]
[TimeControl "180+2"]
[EndTime "14:24:48 PDT"]
[Termination "MarianPetrov won by resignation"]

1. e4 {[%clk 0:02:52.8]} 1... c5 {[%clk 0:02:59.5]} 2. Nf3 {[%clk 0:02:52.1]}
2... Nc6 {[%clk 0:02:59.9]} 3. d4 {[%clk 0:02:53.3]} 3... cxd4 {[%clk
0:03:01.8]} 4. Nxd4 {[%clk 0:02:55]} 4... Qb6 {[%clk 0:03:03.2]} 5. Nb3 {[%clk
0:02:54.5]} 5... Nf6 {[%clk 0:03:04.4]} 6. Nc3 {[%clk 0:02:54.3]} 6... e6 {[%clk
0:03:05.9]} 7. Bd3 {[%clk 0:02:46.4]} 7... a6 {[%clk 0:03:05.6]} 8. O-O {[%clk
0:02:46.7]} 8... d6 {[%clk 0:03:05.4]} 9. a4 {[%clk 0:02:47.3]} 9... Qc7 {[%clk
0:03:05.4]} 10. a5 {[%clk 0:02:47.7]} 10... Bd7 {[%clk 0:02:47.3]} 11. f4 {[%clk
0:02:41.9]} 11... Be7 {[%clk 0:02:45.8]} 12. Be3 {[%clk 0:02:42.7]} 12... O-O
{[%clk 0:02:45.2]} 13. Na4 {[%clk 0:02:31.6]} 13... Nb4 {[%clk 0:02:35.6]} 14.
Nb6 {[%clk 0:02:31.7]} 14... Rad8 {[%clk 0:02:32.5]} 15. Nxd7 {[%clk 0:02:12.9]}
15... Rxd7 {[%clk 0:02:32.5]} 16. c3 {[%clk 0:02:04.1]} 16... Nxd3 {[%clk
0:02:32]} 17. Qxd3 {[%clk 0:02:04.6]} 17... d5 {[%clk 0:02:33.6]} 18. e5 {[%clk
0:02:02.5]} 18... Ne4 {[%clk 0:02:31.9]} 19. Bd4 {[%clk 0:02:02.5]} 19... Qc4
{[%clk 0:02:28.4]} 20. Qd1 {[%clk 0:01:35.8]} 20... f6 {[%clk 0:02:17.1]} 21.
Nd2 {[%clk 0:01:32.4]} 21... Nxd2 {[%clk 0:02:14.3]} 22. Qxd2 {[%clk 0:01:31.8]}
22... f5 {[%clk 0:02:06.7]} 23. b4 {[%clk 0:01:10.9]} 23... h6 {[%clk
0:01:48.5]} 24. Rae1 {[%clk 0:01:06.2]} 24... g5 {[%clk 0:01:48.7]} 25. fxg5
{[%clk 0:00:58.8]} 25... hxg5 {[%clk 0:01:42.4]} 26. g4 {[%clk 0:00:50.7]} 26...
f4 {[%clk 0:01:41.3]} 27. h4 {[%clk 0:00:47.4]} 27... Bd8 {[%clk 0:01:05.9]} 28.
hxg5 {[%clk 0:00:36]} 28... Bxg5 {[%clk 0:01:05.8]} 29. Rf3 {[%clk 0:00:36.5]}
29... Rg7 {[%clk 0:01:04.9]} 30. Re2 {[%clk 0:00:29.4]} 30... Bh4 {[%clk
0:00:55.8]} 31. Rg2 {[%clk 0:00:18.7]} 31... Bg3 {[%clk 0:00:56.6]} 32. Bf2
{[%clk 0:00:16.3]} 32... Qe4 {[%clk 0:00:50.2]} 33. Qd1 {[%clk 0:00:11.4]} 33...
Bxf2+ {[%clk 0:00:33.2]} 34. Kxf2 {[%clk 0:00:11.6]} 34... Qxe5 {[%clk
0:00:33.2]} 35. Qd4 {[%clk 0:00:12.1]} 35... Qe4 {[%clk 0:00:26.8]} 36. g5
{[%clk 0:00:09.3]} 36... e5 {[%clk 0:00:27.6]} 37. Qd2 {[%clk 0:00:07.3]} 37...
Rd8 {[%clk 0:00:17.8]} 38. Rh3 {[%clk 0:00:05.4]} 38... d4 {[%clk 0:00:17.4]}
39. Qa2+ {[%clk 0:00:05]} 39... Qd5 {[%clk 0:00:16.7]} 40. c4 {[%clk 0:00:05]}
40... Qe6 {[%clk 0:00:12.1]} 41. Rh6 {[%clk 0:00:03.9]} 41... Rg6 {[%clk
0:00:10.1]} 42. Rxg6+ {[%clk 0:00:02.9]} 42... Qxg6 {[%clk 0:00:10.9]} 43. c5+
{[%clk 0:00:04.2]} 43... Kg7 {[%clk 0:00:12.5]} 44. Qe2 {[%clk 0:00:04.7]} 44...
e4 {[%clk 0:00:12]} 45. Qg4 {[%clk 0:00:05.7]} 45... e3+ {[%clk 0:00:13]} 46.
Kf3 {[%clk 0:00:06.8]} 46... Qc6+ {[%clk 0:00:13.8]} 47. Kxf4 {[%clk 0:00:07.8]}
47... Re8 {[%clk 0:00:08.6]} 48. Kg3 {[%clk 0:00:04.9]} 48... Qc7+ {[%clk
0:00:09.5]} 49. Qf4 {[%clk 0:00:04.6]} 49... Qxf4+ {[%clk 0:00:08.1]} 50. Kxf4
{[%clk 0:00:05.9]} 50... e2 {[%clk 0:00:10]} 0-1